[Event "44th Chess Olympiad Women 2022"]
[Site "Chennai"]
[Date "2022.07.31"]
[Round "3.51"]
[White "Haile, Lidet Abate"]
[Black "Stojkovska, Monika"]
[Result "1-0"]
[WhiteElo "1624"]
[BlackElo "2091"]
[Annotator "NA RC"]
[PlyCount "79"]
[EventDate "2022.??.??"]
[TimeControl "60"]

1. e4 {[%emt 0:00:04]} c5 {[%emt 0:00:06]} 2. c3 {[%emt 0:00:16]} e6 {[%emt 0:
00:00]} 3. d4 {[%emt 0:00:09]} d5 {[%emt 0:00:24]} 4. e5 {[%emt 0:00:33]} Nc6 {
[%emt 0:00:44]} 5. Nf3 {[%emt 0:00:26]} Qb6 {[%emt 0:00:48]} 6. a3 {[%emt 0:00:
00]} Bd7 {[%emt 0:01:17]} 7. Be2 {[%emt 0:01:43]} Nge7 {[%emt 0:06:17]} 8. b4 {
[%emt 0:05:11]} cxd4 {[%emt 0:03:10]} 9. cxd4 {[%emt 0:00:10]} Rc8 {[%emt 0:00:
00]} 10. O-O {[%emt 0:00:45]} Nf5 {[%emt 0:01:39]} 11. Be3 {[%emt 0:01:53]} Be7
{[%emt 0:02:38]} 12. Qd2 {[%emt 0:03:44]} a6 {[%emt 0:14:34]} 13. Rd1 {[%emt 0:
00:00]} O-O {[%emt 0:03:09]} 14. Bd3 {[%emt 0:05:00]} f6 {[%emt 0:12:02]} 15.
Bxf5 {[%emt 0:02:07]} exf5 {[%emt 0:00:15]} 16. Nc3 {[%emt 0:05:15]} Be6 {
[%emt 0:01:23]} 17. exf6 {[%emt 0:03:09]} Bxf6 {[%emt 0:08:23]} 18. Na4 {
[%emt 0:02:51]} Qc7 {[%emt 0:00:52]} 19. Bf4 {[%emt 0:00:44]} Qf7 {[%emt 0:00:
00]} 20. Nc5 {[%emt 0:03:45]} b6 {[%emt 0:06:18]} 21. Nxa6 {[%emt 0:12:10]} Qa7
{[%emt 0:05:51]} 22. b5 {[%emt 0:03:22]} Na5 {[%emt 0:00:35]} 23. Qd3 {[%emt 0:
00:00]} Rc4 {[%emt 0:01:42]} 24. Bd2 {[%emt 0:13:15]} Rfc8 {[%emt 0:07:58]} 25.
Re1 {[%emt 0:08:54]} Bd7 {[%emt 0:01:46]} 26. Nb4 {[%emt 0:03:50]} Qb7 {
[%emt 0:01:49]} 27. a4 {[%emt 0:02:58]} Kf7 {[%emt 0:09:09]} 28. h3 {[%emt 0:
00:00]} Be6 {[%emt 0:01:28]} 29. Ne5+ {[%emt 0:01:00]} Bxe5 {[%emt 0:00:04]}
30. Rxe5 {[%emt 0:00:18]} g6 {[%emt 0:00:13]} 31. Rae1 {[%emt 0:00:10]} Re8 {
[%emt 0:01:01]} 32. Nxd5 {[%emt 0:01:09]} Rxa4 {[%emt 0:00:43]} 33. Nf4 {
[%emt 0:00:26]} Bd7 {[%emt 0:02:20]} 34. Bxa5 {[%emt 0:00:35]} Rxe5 {[%emt 0:
00:00]} 35. dxe5 {[%emt 0:01:27]} Rxf4 {[%emt 0:00:10]} 36. Bd2 {[%emt 0:00:10]
} Re4 {[%emt 0:00:18]} 37. Rd1 {[%emt 0:00:41]} Be6 {[%emt 0:01:19]} 38. Qd6 {
[%emt 0:00:33]} f4 {[%emt 0:00:43]} 39. Bb4 {[%emt 0:00:11]} Qc8 {[%emt 0:00:
00]} 40. Qe7+ {[%emt 0:00:14]} 1-0

[Event "44th Chess Olympiad Women 2022"]
[Site "Chennai"]
[Date "2022.07.31"]
[Round "3.51"]
[White "Manova, Ivana"]
[Black "Bantiwalu, Aster Melake"]
[Result "1-0"]
[WhiteElo "1849"]
[BlackElo "1425"]
[Annotator "NA RC"]
[PlyCount "121"]
[EventDate "2022.??.??"]
[TimeControl "60"]

1. e4 {[%emt 0:00:05]} e5 {[%emt 0:00:20]} 2. Nf3 {[%emt 0:00:16]} Nc6 {
[%emt 0:00:28]} 3. d4 {[%emt 0:00:38]} exd4 {[%emt 0:01:20]} 4. Bc4 {[%emt 0:
00:00]} h6 {[%emt 0:01:26]} 5. O-O {[%emt 0:01:23]} Bc5 {[%emt 0:01:34]} 6. c3
{[%emt 0:01:48]} dxc3 {[%emt 0:02:53]} 7. Bxf7+ {[%emt 0:00:24]} Kf8 {[%emt 0:
00:00]} 8. Nxc3 {[%emt 0:00:44]} d6 {[%emt 0:01:48]} 9. Bb3 {[%emt 0:02:47]}
Bg4 {[%emt 0:01:57]} 10. Qd5 {[%emt 0:04:48]} Qe8 {[%emt 0:04:34]} 11. Nh4 {
[%emt 0:13:14]} Nge7 {[%emt 0:01:42]} 12. Qd3 {[%emt 0:12:32]} Qh5 {[%emt 0:00:
00]} 13. Qg3 {[%emt 0:09:25]} Nd4 {[%emt 0:05:24]} 14. h3 {[%emt 0:03:51]} Be6
{[%emt 0:04:35]} 15. Bxe6 {[%emt 0:02:38]} Nxe6 {[%emt 0:00:31]} 16. Be3 {
[%emt 0:03:23]} g5 {[%emt 0:02:29]} 17. Nf5 {[%emt 0:01:23]} Qf7 {[%emt 0:00:
00]} 18. Nxe7 {[%emt 0:02:56]} Kxe7 {[%emt 0:01:08]} 19. Nd5+ {[%emt 0:00:28]}
Kd7 {[%emt 0:01:06]} 20. b4 {[%emt 0:02:44]} Bd4 {[%emt 0:01:16]} 21. Bxd4 {
[%emt 0:01:49]} Nxd4 {[%emt 0:00:16]} 22. Qd3 {[%emt 0:00:14]} Ne6 {[%emt 0:00:
00]} 23. Rac1 {[%emt 0:01:40]} c6 {[%emt 0:01:38]} 24. Ne3 {[%emt 0:00:23]} Nf4
{[%emt 0:01:18]} 25. Qd2 {[%emt 0:01:27]} Rae8 {[%emt 0:01:27]} 26. f3 {
[%emt 0:02:31]} Rhg8 {[%emt 0:03:54]} 27. Rfd1 {[%emt 0:01:08]} Re6 {[%emt 0:
00:00]} 28. Rc4 {[%emt 0:04:29]} Rgg6 {[%emt 0:03:10]} 29. Rd4 {[%emt 0:00:52]}
Qg7 {[%emt 0:03:19]} 30. Kh1 {[%emt 0:03:35]} Qf8 {[%emt 0:03:01]} 31. b5 {
[%emt 0:03:32]} c5 {[%emt 0:05:44]} 32. Ra4 {[%emt 0:00:56]} Qb8 {[%emt 0:00:
00]} 33. Qa5 {[%emt 0:01:10]} Ne2 {[%emt 0:04:20]} 34. Nd5 {[%emt 0:02:19]} Nd4
{[%emt 0:03:14]} 35. Qxa7 {[%emt 0:00:32]} Qxa7 {[%emt 0:00:29]} 36. Rxa7 {
[%emt 0:00:02]} Kc8 {[%emt 0:00:35]} 37. Ra8+ {[%emt 0:00:19]} Kd7 {[%emt 0:00:
00]} 38. Rb8 {[%emt 0:00:15]} Re8 {[%emt 0:06:25]} 39. Rxb7+ {[%emt 0:00:23]}
Kc8 {[%emt 0:00:11]} 40. Re7 {[%emt 0:00:45]} Re6 {[%emt 0:03:22]} 41. Rxe8+ {
[%emt 0:31:48]} Rxe8 {[%emt 0:30:06]} 42. a4 {[%emt 0:00:54]} Kb7 {[%emt 0:00:
00]} 43. Nc3 {[%emt 0:03:43]} Kb6 {[%emt 0:01:09]} 44. Kg1 {[%emt 0:04:57]} Ka5
{[%emt 0:01:42]} 45. Rb1 {[%emt 0:00:56]} Nc2 {[%emt 0:01:46]} 46. Kf2 {
[%emt 0:00:58]} Nb4 {[%emt 0:00:44]} 47. Rd1 {[%emt 0:00:43]} Rd8 {[%emt 0:00:
00]} 48. Rd2 {[%emt 0:01:24]} Kb6 {[%emt 0:02:30]} 49. Ke3 {[%emt 0:01:12]} Rd7
{[%emt 0:01:27]} 50. g3 {[%emt 0:01:58]} Kc7 {[%emt 0:01:51]} 51. a5 {[%emt 0:
00:00]} Rd8 {[%emt 0:00:46]} 52. f4 {[%emt 0:01:21]} gxf4+ {[%emt 0:00:48]} 53.
gxf4 {[%emt 0:00:07]} Ra8 {[%emt 0:00:08]} 54. a6 {[%emt 0:00:24]} Rg8 {
[%emt 0:00:42]} 55. Kf3 {[%emt 0:00:23]} Rg6 {[%emt 0:02:16]} 56. Rg2 {[%emt 0:
00:00]} Rxg2 {[%emt 0:01:21]} 57. Kxg2 {[%emt 0:00:02]} Nd3 {[%emt 0:00:22]}
58. Nd5+ {[%emt 0:00:26]} Kb8 {[%emt 0:01:23]} 59. b6 {[%emt 0:00:55]} Nb4 {
[%emt 0:01:25]} 60. a7+ {[%emt 0:00:13]} Kb7 {[%emt 0:00:44]} 61. Nc7 {[%emt 0:
00:00]} 1-0

[Event "44th Chess Olympiad Women 2022"]
[Site "Chennai"]
[Date "2022.07.31"]
[Round "3.51"]
[White "Zhezhovska, Monika"]
[Black "Mekonen, Selemawit Kidanemar"]
[Result "1-0"]
[WhiteElo "1588"]
[BlackElo "1263"]
[Annotator "NA RC"]
[PlyCount "55"]
[EventDate "2022.??.??"]
[TimeControl "60"]

1. d4 {[%emt 0:00:04]} d5 {[%emt 0:00:11]} 2. c4 {[%emt 0:00:11]} dxc4 {
[%emt 0:01:14]} 3. e3 {[%emt 0:00:17]} g6 {[%emt 0:01:43]} 4. Bxc4 {[%emt 0:00:
00]} Nf6 {[%emt 0:01:52]} 5. Nf3 {[%emt 0:00:29]} Bg7 {[%emt 0:01:43]} 6. Nc3 {
[%emt 0:00:31]} O-O {[%emt 0:03:31]} 7. O-O {[%emt 0:01:13]} Bg4 {[%emt 0:00:
00]} 8. h3 {[%emt 0:00:54]} Bxf3 {[%emt 0:02:27]} 9. Qxf3 {[%emt 0:00:08]} Nc6
{[%emt 0:00:52]} 10. Rd1 {[%emt 0:01:48]} e6 {[%emt 0:03:00]} 11. b3 {[%emt 0:
00:00]} a6 {[%emt 0:00:24]} 12. Bb2 {[%emt 0:00:35]} Re8 {[%emt 0:04:20]} 13.
Rac1 {[%emt 0:03:20]} Rb8 {[%emt 0:01:18]} 14. Bxa6 {[%emt 0:03:18]} Na5 {
[%emt 0:11:14]} 15. Bf1 {[%emt 0:00:43]} Re7 {[%emt 0:05:03]} 16. d5 {[%emt 0:
00:00]} e5 {[%emt 0:04:16]} 17. b4 {[%emt 0:00:37]} e4 {[%emt 0:05:18]} 18. Qe2
{[%emt 0:01:48]} Rd7 {[%emt 0:02:45]} 19. bxa5 {[%emt 0:00:18]} Nxd5 {[%emt 0:
00:00]} 20. Nxe4 {[%emt 0:00:47]} Ra8 {[%emt 0:02:16]} 21. Bxg7 {[%emt 0:00:40]
} Kxg7 {[%emt 0:00:32]} 22. Qb2+ {[%emt 0:00:13]} Kg8 {[%emt 0:00:58]} 23. Bc4
{[%emt 0:00:22]} Rxa5 {[%emt 0:00:44]} 24. Bxd5 {[%emt 0:00:21]} Kf8 {[%emt 0:
00:00]} 25. Qb4+ {[%emt 0:00:29]} c5 {[%emt 0:00:51]} 26. Nxc5 {[%emt 0:00:55]}
Rxc5 {[%emt 0:02:16]} 27. Qxc5+ {[%emt 0:00:06]} Rd6 {[%emt 0:02:04]} 28. Bxb7
{[%emt 0:00:30]} 1-0

[Event "44th Chess Olympiad Women 2022"]
[Site "Chennai"]
[Date "2022.07.31"]
[Round "3.52"]
[White "Cooke, Suzie G."]
[Black "Lyons, Kieran"]
[Result "1-0"]
[WhiteElo "1936"]
[BlackElo "1767"]
[Annotator "NA"]
[PlyCount "45"]
[EventDate "2022.??.??"]
[TimeControl "60"]

1. d4 {[%emt 0:00:04]} f5 {[%emt 0:00:06]} 2. Bg5 {[%emt 0:00:24]} h6 {[%emt 0:
00:00]} 3. Bf4 {[%emt 0:00:23]} e6 {[%emt 0:01:02]} 4. e4 {[%emt 0:05:09]} Be7
{[%emt 0:12:55]} 5. exf5 {[%emt 0:05:59]} Nf6 {[%emt 0:08:39]} 6. fxe6 {
[%emt 0:00:44]} dxe6 {[%emt 0:00:24]} 7. Bd3 {[%emt 0:02:36]} O-O {[%emt 0:00:
00]} 8. Bg3 {[%emt 0:21:31]} Nc6 {[%emt 0:03:41]} 9. c3 {[%emt 0:02:19]} Bd6 {
[%emt 0:12:57]} 10. Nf3 {[%emt 0:05:14]} Ng4 {[%emt 0:06:49]} 11. Bxd6 {
[%emt 0:06:27]} Qxd6 {[%emt 0:07:51]} 12. h3 {[%emt 0:01:37]} Nf6 {[%emt 0:00:
00]} 13. Nbd2 {[%emt 0:01:25]} Nd5 {[%emt 0:13:13]} 14. Nc4 {[%emt 0:02:23]}
Qf4 {[%emt 0:03:00]} 15. Qe2 {[%emt 0:08:59]} Bd7 {[%emt 0:12:02]} 16. Nce5 {
[%emt 0:02:59]} Nxe5 {[%emt 0:00:27]} 17. Nxe5 {[%emt 0:01:04]} Be8 {[%emt 0:
00:00]} 18. g3 {[%emt 0:01:47]} Qf6 {[%emt 0:01:36]} 19. f4 {[%emt 0:06:14]}
Qe7 {[%emt 0:04:13]} 20. O-O-O {[%emt 0:00:53]} c5 {[%emt 0:01:03]} 21. Bc2 {
[%emt 0:03:24]} b5 {[%emt 0:02:01]} 22. Qe4 {[%emt 0:01:00]} g5 {[%emt 0:01:03]
} 23. Ng6 {[%emt 0:05:42]} 1-0

[Event "44th Chess Olympiad Women 2022"]
[Site "Chennai"]
[Date "2022.07.31"]
[Round "3.52"]
[White "Lampard, Alice"]
[Black "Terubea, Cydel"]
[Result "1-0"]
[WhiteElo "1729"]
[BlackElo "1450"]
[Annotator "NA"]
[PlyCount "91"]
[EventDate "2022.??.??"]
[TimeControl "60"]

1. e4 {[%emt 0:00:03]} d5 {[%emt 0:00:06]} 2. exd5 {[%emt 0:00:16]} Qxd5 {
[%emt 0:00:14]} 3. Nc3 {[%emt 0:00:17]} Qd8 {[%emt 0:01:21]} 4. Bc4 {[%emt 0:
00:00]} e6 {[%emt 0:01:16]} 5. Nf3 {[%emt 0:00:28]} Nf6 {[%emt 0:00:41]} 6. d3
{[%emt 0:00:39]} Bb4 {[%emt 0:01:09]} 7. O-O {[%emt 0:01:12]} Bxc3 {[%emt 0:00:
00]} 8. bxc3 {[%emt 0:00:18]} O-O {[%emt 0:02:18]} 9. Re1 {[%emt 0:01:37]} Nc6
{[%emt 0:01:06]} 10. Bg5 {[%emt 0:03:55]} Qd6 {[%emt 0:09:31]} 11. Bxf6 {
[%emt 0:06:45]} gxf6 {[%emt 0:01:01]} 12. Nd2 {[%emt 0:02:30]} Kh8 {[%emt 0:00:
00]} 13. Re3 {[%emt 0:04:02]} Rg8 {[%emt 0:01:53]} 14. Qh5 {[%emt 0:02:33]} Rg7
{[%emt 0:04:12]} 15. d4 {[%emt 0:09:01]} Bd7 {[%emt 0:06:29]} 16. Bd3 {[%emt 0:
00:00]} e5 {[%emt 0:03:32]} 17. Rg3 {[%emt 0:04:31]} Rag8 {[%emt 0:00:29]} 18.
Ne4 {[%emt 0:02:11]} Qe7 {[%emt 0:02:32]} 19. d5 {[%emt 0:11:38]} Nd8 {[%emt 0:
00:00]} 20. Qh4 {[%emt 0:05:13]} Bf5 {[%emt 0:05:55]} 21. Qxf6 {[%emt 0:04:42]}
Qxf6 {[%emt 0:00:52]} 22. Nxf6 {[%emt 0:00:07]} Rxg3 {[%emt 0:00:22]} 23. hxg3
{[%emt 0:01:04]} Rg6 {[%emt 0:01:33]} 24. Bxf5 {[%emt 0:01:43]} Rxf6 {[%emt 0:
00:00]} 25. g4 {[%emt 0:00:50]} Rb6 {[%emt 0:01:44]} 26. Re1 {[%emt 0:02:59]}
f6 {[%emt 0:00:08]} 27. g5 {[%emt 0:01:59]} Kg7 {[%emt 0:05:07]} 28. g4 {
[%emt 0:00:47]} h6 {[%emt 0:01:29]} 29. g6 {[%emt 0:02:21]} Rb2 {[%emt 0:01:04]
} 30. f4 {[%emt 0:01:22]} b6 {[%emt 0:03:23]} 31. fxe5 {[%emt 0:00:35]} fxe5 {
[%emt 0:00:31]} 32. Rxe5 {[%emt 0:00:12]} Rxa2 {[%emt 0:11:16]} 33. Re8 {
[%emt 0:02:56]} Nb7 {[%emt 0:03:01]} 34. Re7+ {[%emt 0:00:19]} Kf6 {[%emt 0:00:
00]} 35. Rf7+ {[%emt 0:00:59]} Kg5 {[%emt 0:00:15]} 36. g7 {[%emt 0:00:09]} Kh4
{[%emt 0:00:14]} 37. g8=Q {[%emt 0:00:45]} Kg3 {[%emt 0:00:19]} 38. Kf1 {
[%emt 0:00:12]} Ra1+ {[%emt 0:03:41]} 39. Ke2 {[%emt 0:00:08]} Nd6 {[%emt 0:00:
00]} 40. Re7 {[%emt 0:00:44]} a5 {[%emt 0:01:28]} 41. Re3+ {[%emt 0:30:23]} Kg2
{[%emt 0:32:10]} 42. Be4+ {[%emt 0:01:12]} Nxe4 {[%emt 0:01:31]} 43. Rxe4 {
[%emt 0:01:55]} Rf1 {[%emt 0:00:08]} 44. g5 {[%emt 0:01:14]} Rf2+ {[%emt 0:00:
00]} 45. Kd3 {[%emt 0:00:08]} Rf3+ {[%emt 0:00:22]} 46. Re3 {[%emt 0:00:18]}
1-0

[Event "44th Chess Olympiad Women 2022"]
[Site "Chennai"]
[Date "2022.07.31"]
[Round "3.52"]
[White "Prasad, Tanvi"]
[Black "Reid, Caitlin"]
[Result "1-0"]
[WhiteElo "1165"]
[BlackElo "1437"]
[Annotator "NA RC"]
[PlyCount "81"]
[EventDate "2022.??.??"]
[TimeControl "60"]

1. d4 {[%emt 0:00:03]} f5 {[%emt 0:00:00]} 2. c4 {[%emt 0:00:08]} g6 {[%emt 0:
00:00]} 3. Nc3 {[%emt 0:00:41]} Bg7 {[%emt 0:00:15]} 4. Nf3 {[%emt 0:00:30]}
Nf6 {[%emt 0:00:51]} 5. e3 {[%emt 0:01:20]} e6 {[%emt 0:00:27]} 6. g3 {[%emt 0:
00:00]} b6 {[%emt 0:02:31]} 7. Bg2 {[%emt 0:00:18]} Bb7 {[%emt 0:00:12]} 8. O-O
{[%emt 0:00:31]} O-O {[%emt 0:00:24]} 9. b3 {[%emt 0:00:58]} d6 {[%emt 0:00:56]
} 10. Bb2 {[%emt 0:00:46]} Nbd7 {[%emt 0:01:51]} 11. Ng5 {[%emt 0:02:28]} Bxg2
{[%emt 0:00:28]} 12. Kxg2 {[%emt 0:03:06]} Qe7 {[%emt 0:01:18]} 13. d5 {
[%emt 0:02:42]} exd5 {[%emt 0:07:00]} 14. Nxd5 {[%emt 0:01:29]} Nxd5 {[%emt 0:
00:00]} 15. Qxd5+ {[%emt 0:00:24]} Kh8 {[%emt 0:00:05]} 16. Bxg7+ {[%emt 0:00:
00]} Kxg7 {[%emt 0:00:06]} 17. Ne6+ {[%emt 0:00:41]} Kh6 {[%emt 0:00:09]} 18.
Nxf8 {[%emt 0:00:41]} Rxf8 {[%emt 0:01:18]} 19. Qb7 {[%emt 0:05:19]} g5 {
[%emt 0:08:46]} 20. Qxc7 {[%emt 0:02:32]} Qe4+ {[%emt 0:00:20]} 21. Kg1 {
[%emt 0:01:45]} Nf6 {[%emt 0:07:28]} 22. Qxd6 {[%emt 0:02:40]} Rf7 {[%emt 0:00:
00]} 23. Qd4 {[%emt 0:03:41]} Qf3 {[%emt 0:01:31]} 24. Qd1 {[%emt 0:03:55]} Qe4
{[%emt 0:01:10]} 25. Re1 {[%emt 0:02:21]} g4 {[%emt 0:01:49]} 26. Qe2 {[%emt 0:
00:00]} Kg5 {[%emt 0:01:30]} 27. Rad1 {[%emt 0:02:06]} h5 {[%emt 0:00:46]} 28.
h4+ {[%emt 0:02:19]} gxh3 {[%emt 0:00:58]} 29. f4+ {[%emt 0:00:27]} Kh6 {
[%emt 0:02:55]} 30. Kh2 {[%emt 0:00:40]} h4 {[%emt 0:03:06]} 31. gxh4 {[%emt 0:
00:00]} Ng4+ {[%emt 0:03:06]} 32. Kxh3 {[%emt 0:01:26]} Qe7 {[%emt 0:00:47]}
33. Rg1 {[%emt 0:06:43]} Rg7 {[%emt 0:02:50]} 34. e4 {[%emt 0:02:09]} Kh5 {
[%emt 0:06:40]} 35. Qe1 {[%emt 0:01:34]} fxe4 {[%emt 0:04:47]} 36. Rd5+ {
[%emt 0:02:53]} Kh6 {[%emt 0:00:10]} 37. Rxg4 {[%emt 0:01:03]} Rf7 {[%emt 0:00:
00]} 38. Rgg5 {[%emt 0:01:36]} Rxf4 {[%emt 0:00:37]} 39. Rh5+ {[%emt 0:00:37]}
Kg7 {[%emt 0:00:11]} 40. Qg3+ {[%emt 0:00:15]} Kf8 {[%emt 0:00:45]} 41. Qxf4+ {
[%emt 0:53:10]} 1-0

[Event "44th Chess Olympiad Women 2022"]
[Site "Chennai"]
[Date "2022.07.31"]
[Round "3.52"]
[White "Sewak, Aarti"]
[Black "Roy, Ali"]
[Result "0-1"]
[WhiteElo "1412"]
[BlackElo "1893"]
[Annotator "NA"]
[PlyCount "80"]
[EventDate "2022.??.??"]
[TimeControl "60"]

1. e4 {[%emt 0:00:02]} e6 {[%emt 0:00:05]} 2. Nf3 {[%emt 0:00:18]} d5 {[%emt 0:
00:00]} 3. e5 {[%emt 0:00:47]} c5 {[%emt 0:00:22]} 4. d4 {[%emt 0:01:47]} Nc6 {
[%emt 0:00:33]} 5. Be3 {[%emt 0:00:40]} cxd4 {[%emt 0:02:25]} 6. Bxd4 {[%emt 0:
00:00]} Nxd4 {[%emt 0:04:07]} 7. Nxd4 {[%emt 0:00:33]} Bd7 {[%emt 0:02:27]} 8.
c3 {[%emt 0:02:28]} Qb6 {[%emt 0:01:16]} 9. Qd2 {[%emt 0:05:55]} Ne7 {[%emt 0:
00:00]} 10. Bd3 {[%emt 0:01:54]} Ng6 {[%emt 0:01:26]} 11. Bxg6 {[%emt 0:04:14]}
hxg6 {[%emt 0:00:23]} 12. Nf3 {[%emt 0:00:49]} Bb5 {[%emt 0:07:51]} 13. a4 {
[%emt 0:01:28]} Bc4 {[%emt 0:12:25]} 14. a5 {[%emt 0:01:49]} Qc7 {[%emt 0:00:
00]} 15. b4 {[%emt 0:02:41]} Be7 {[%emt 0:00:53]} 16. Na3 {[%emt 0:00:54]} Rc8
{[%emt 0:02:26]} 17. Qe3 {[%emt 0:00:35]} O-O {[%emt 0:07:51]} 18. Nd2 {
[%emt 0:00:55]} Rfd8 {[%emt 0:02:36]} 19. Ndxc4 {[%emt 0:02:30]} dxc4 {[%emt 0:
00:00]} 20. Rc1 {[%emt 0:02:48]} Rd3 {[%emt 0:04:17]} 21. Qe2 {[%emt 0:05:47]}
Bxb4 {[%emt 0:05:23]} 22. Nb1 {[%emt 0:02:10]} Bxa5 {[%emt 0:00:48]} 23. O-O {
[%emt 0:00:15]} Rcd8 {[%emt 0:01:07]} 24. Rfe1 {[%emt 0:01:12]} Bb6 {[%emt 0:
00:00]} 25. h3 {[%emt 0:03:31]} Qc5 {[%emt 0:03:44]} 26. Rc2 {[%emt 0:00:19]}
Qd5 {[%emt 0:02:31]} 27. Kh2 {[%emt 0:08:16]} Bc5 {[%emt 0:01:21]} 28. Qg4 {
[%emt 0:06:33]} b5 {[%emt 0:02:45]} 29. Ree2 {[%emt 0:04:33]} a5 {[%emt 0:00:
00]} 30. Ra2 {[%emt 0:08:42]} Bb6 {[%emt 0:01:03]} 31. Na3 {[%emt 0:03:19]}
Rxc3 {[%emt 0:01:39]} 32. Nb1 {[%emt 0:06:52]} Rd3 {[%emt 0:01:09]} 33. Rac2 {
[%emt 0:01:37]} Rd4 {[%emt 0:03:59]} 34. Qg3 {[%emt 0:02:30]} b4 {[%emt 0:00:
00]} 35. f4 {[%emt 0:04:07]} b3 {[%emt 0:01:06]} 36. Rc3 {[%emt 0:01:35]} Rd3 {
[%emt 0:00:45]} 37. Qg4 {[%emt 0:03:13]} Rxc3 {[%emt 0:02:13]} 38. Nxc3 {
[%emt 0:01:05]} Qd4 {[%emt 0:00:22]} 39. Nb5 {[%emt 0:01:39]} Qg1+ {[%emt 0:00:
00]} 40. Kg3 {[%emt 0:01:34]} Rd3+ {[%emt 0:00:05]} 0-1

[Event "44th Chess Olympiad Women 2022"]
[Site "Chennai"]
[Date "2022.07.31"]
[Round "3.53"]
[White "Ben Said, Safa"]
[Black "Mouradian, Knarik"]
[Result "0-1"]
[WhiteElo "1564"]
[BlackElo "2121"]
[Annotator "NA RC"]
[PlyCount "56"]
[EventDate "2022.??.??"]
[TimeControl "60"]

1. e4 {[%emt 0:00:04]} c5 {[%emt 0:00:13]} 2. Nf3 {[%emt 0:00:11]} d6 {[%emt 0:
00:00]} 3. d4 {[%emt 0:00:19]} cxd4 {[%emt 0:00:09]} 4. Nxd4 {[%emt 0:00:09]}
Nf6 {[%emt 0:00:06]} 5. Nc3 {[%emt 0:00:32]} a6 {[%emt 0:00:13]} 6. Be3 {
[%emt 0:01:28]} e5 {[%emt 0:00:51]} 7. Nf3 {[%emt 0:02:46]} Be7 {[%emt 0:02:31]
} 8. Bc4 {[%emt 0:02:38]} O-O {[%emt 0:06:32]} 9. Qe2 {[%emt 0:04:28]} Nbd7 {
[%emt 0:06:49]} 10. a4 {[%emt 0:06:47]} b6 {[%emt 0:14:15]} 11. Rd1 {[%emt 0:
00:00]} Bb7 {[%emt 0:04:21]} 12. Bg5 {[%emt 0:03:48]} Qc7 {[%emt 0:10:10]} 13.
O-O {[%emt 0:07:08]} Rfc8 {[%emt 0:13:17]} 14. Ba2 {[%emt 0:07:44]} Bf8 {
[%emt 0:10:39]} 15. Bxf6 {[%emt 0:02:31]} Nxf6 {[%emt 0:01:40]} 16. Ng5 {
[%emt 0:05:03]} d5 {[%emt 0:02:54]} 17. exd5 {[%emt 0:04:50]} Bd6 {[%emt 0:00:
00]} 18. Nge4 {[%emt 0:08:24]} Nxe4 {[%emt 0:05:34]} 19. Qxe4 {[%emt 0:00:15]}
Rf8 {[%emt 0:00:30]} 20. g4 {[%emt 0:07:54]} Bc8 {[%emt 0:01:10]} 21. Qg2 {
[%emt 0:02:33]} f5 {[%emt 0:00:34]} 22. f4 {[%emt 0:00:51]} exf4 {[%emt 0:00:
00]} 23. gxf5 {[%emt 0:01:25]} Bxf5 {[%emt 0:00:30]} 24. Ne4 {[%emt 0:01:15]}
Bxe4 {[%emt 0:00:45]} 25. Qxe4 {[%emt 0:00:01]} Rae8 {[%emt 0:00:16]} 26. Qg2 {
[%emt 0:02:39]} Rf6 {[%emt 0:00:43]} 27. Rde1 {[%emt 0:01:53]} Rxe1 {[%emt 0:
00:00]} 28. Rxe1 {[%emt 0:01:00]} Rg6 {[%emt 0:00:09]} 0-1

[Event "44th Chess Olympiad Women 2022"]
[Site "Chennai"]
[Date "2022.07.31"]
[Round "3.53"]
[White "Fawaz, Nadia"]
[Black "Mefteh, Meyssem"]
[Result "1-0"]
[WhiteElo "1214"]
[BlackElo "1254"]
[Annotator "NA RC"]
[PlyCount "103"]
[EventDate "2022.??.??"]
[TimeControl "60"]

1. d4 {[%emt 0:00:16]} Nf6 {[%emt 0:00:04]} 2. Nf3 {[%emt 0:00:28]} e6 {
[%emt 0:00:49]} 3. Bf4 {[%emt 0:00:54]} d5 {[%emt 0:00:35]} 4. e3 {[%emt 0:00:
00]} Bd6 {[%emt 0:05:02]} 5. Bg3 {[%emt 0:01:41]} O-O {[%emt 0:05:39]} 6. Bd3 {
[%emt 0:01:41]} c5 {[%emt 0:03:42]} 7. dxc5 {[%emt 0:04:29]} Bxc5 {[%emt 0:00:
00]} 8. O-O {[%emt 0:06:03]} Nc6 {[%emt 0:02:21]} 9. Bh4 {[%emt 0:04:11]} Be7 {
[%emt 0:03:29]} 10. Nc3 {[%emt 0:02:40]} e5 {[%emt 0:06:49]} 11. Bxf6 {[%emt 0:
00:00]} Bxf6 {[%emt 0:00:06]} 12. Nxd5 {[%emt 0:00:17]} Re8 {[%emt 0:31:05]}
13. e4 {[%emt 0:03:39]} Bg4 {[%emt 0:03:01]} 14. Be2 {[%emt 0:02:02]} Bxf3 {
[%emt 0:03:46]} 15. Bxf3 {[%emt 0:00:40]} Rc8 {[%emt 0:00:31]} 16. Bg4 {
[%emt 0:00:51]} Rb8 {[%emt 0:00:43]} 17. c3 {[%emt 0:02:47]} b5 {[%emt 0:03:15]
} 18. Bd7 {[%emt 0:00:12]} Re6 {[%emt 0:09:19]} 19. Bxe6 {[%emt 0:00:54]} fxe6
{[%emt 0:00:06]} 20. Nxf6+ {[%emt 0:00:10]} Qxf6 {[%emt 0:00:07]} 21. Qd7 {
[%emt 0:00:34]} Nd8 {[%emt 0:01:36]} 22. Rad1 {[%emt 0:01:17]} Nf7 {[%emt 0:00:
00]} 23. Qxa7 {[%emt 0:02:37]} Rd8 {[%emt 0:01:01]} 24. Rxd8+ {[%emt 0:00:15]}
Qxd8 {[%emt 0:00:03]} 25. Qa6 {[%emt 0:01:13]} Qd7 {[%emt 0:00:48]} 26. Qa8+ {
[%emt 0:01:12]} Nd8 {[%emt 0:00:15]} 27. Qb8 {[%emt 0:00:16]} Kf7 {[%emt 0:00:
00]} 28. Qxe5 {[%emt 0:00:14]} Nb7 {[%emt 0:00:39]} 29. Qh5+ {[%emt 0:00:16]}
Kg8 {[%emt 0:00:22]} 30. Rd1 {[%emt 0:00:50]} Qc6 {[%emt 0:00:39]} 31. e5 {
[%emt 0:01:06]} Qc8 {[%emt 0:00:30]} 32. Rd3 {[%emt 0:01:26]} Nc5 {[%emt 0:00:
00]} 33. Rh3 {[%emt 0:01:20]} h6 {[%emt 0:00:27]} 34. Rg3 {[%emt 0:00:19]} Qd7
{[%emt 0:00:16]} 35. h3 {[%emt 0:01:32]} Ne4 {[%emt 0:00:34]} 36. Re3 {[%emt 0:
00:00]} Ng5 {[%emt 0:00:35]} 37. Qe2 {[%emt 0:00:57]} Qe8 {[%emt 0:00:33]} 38.
Rd3 {[%emt 0:00:30]} Nf7 {[%emt 0:00:18]} 39. Qd1 {[%emt 0:01:05]} Kh7 {
[%emt 0:00:20]} 40. f4 {[%emt 0:01:17]} Qa8 {[%emt 0:00:53]} 41. Rd7 {[%emt 0:
00:00]} Kg8 {[%emt 0:30:23]} 42. Qh5 {[%emt 0:00:32]} Qe8 {[%emt 0:00:19]} 43.
Rb7 {[%emt 0:01:30]} Kf8 {[%emt 0:00:50]} 44. Qe2 {[%emt 0:08:07]} Qd8 {
[%emt 0:00:00]} 45. f5 {[%emt 0:00:00]} Qg5 {[%emt 0:00:00]} 46. fxe6 {[%emt 0:
00:00]} Nxe5 {[%emt 0:00:00]} 47. e7+ {[%emt 0:00:00]} Kf7 {[%emt 0:00:00]} 48.
Qf2+ {[%emt 0:00:00]} Qf6 {[%emt 0:00:00]} 49. Qc5 {[%emt 0:00:00]} Qe6 {
[%emt 0:00:00]} 50. Qxb5 {[%emt 0:04:09]} Nc4 {[%emt 0:00:00]} 51. e8=Q+ {
[%emt 0:00:27]} Kf6 {[%emt 0:00:00]} 52. Qxe6+ {[%emt 0:00:29]} 1-0